fUSD/lending_fUSD_20250105
["ID","MTS","AMOUNT","RATE_DAILY","PERIOD"]
[347742057,1736088668306,-558.45,9.589e-05,2]
[347742058,1736088668317,-500.0,9.589e-05,2]
[347742059,1736088668327,-500.0,9.589e-05,2]
[347742060,1736088668338,-2547.77,9.589e-05,2]
[347742061,1736088668347,-500.0,9.589e-05,2]
[347742062,1736088668357,-755.79,9.589e-05,2]
[347742063,1736088668367,-628.11,9.589e-05,2]
[347742064,1736088668380,-500.0,9.589e-05,2]
[347742065,1736088668391,-1678.51,9.589e-05,2]
[347742066,1736088668400,-500.0,9.589e-05,2]
[347742067,1736088668410,-637.32,9.589e-05,2]
[347742068,1736088668420,-500.0,9.589e-05,2]
[347742069,1736088668429,-500.0,9.589e-05,2]
[347742070,1736088668439,-1939.56,9.589e-05,2]
[347742071,1736088668450,-967.35,9.589e-05,2]
[347742072,1736088668461,-2938.08,9.589e-05,2]
[347742073,1736088668472,-500.0,9.589e-05,2]
[347742074,1736088668482,-1484.18,9.589e-05,2]
[347742075,1736088668491,-575.66,9.589e-05,2]
[347742076,1736088668501,-527.8,9.589e-05,2]
[347742077,1736088668511,-737.38,9.589e-05,2]
[347742078,1736088668520,-7180.0,9.589e-05,2]
[347742079,1736088668530,-582.79845452,9.589e-05,2]
[347742080,1736088668540,-500.0,9.589e-05,2]
[347742081,1736088668550,-865.87,9.589e-05,2]
[347742082,1736088668560,-4188.92,9.589e-05,2]
[347742083,1736088668570,-699.37,9.589e-05,2]
[347742084,1736088668580,-500.0,9.589e-05,2]
[347742085,1736088668590,-1392.46,9.589e-05,2]
[347742086,1736088668599,-944.8,9.589e-05,2]
[347742087,1736088668609,-500.0,9.589e-05,2]
[347742088,1736088668619,-1443.92,9.589e-05,2]
[347742089,1736088668628,-2079.08,9.589e-05,2]
[347742090,1736088668638,-795.66,9.589e-05,2]
[347742091,1736088668648,-1036.34,9.589e-05,2]
[347742092,1736088668658,-500.0,9.589e-05,2]
[347742093,1736088668668,-5368.55,9.589e-05,2]
[347742094,1736088668677,-1450.42,9.589e-05,2]
[347742095,1736088668687,-500.0,9.589e-05,2]
[347742096,1736088668696,-500.0,9.589e-05,2]
[347742097,1736088668706,-700.3,9.589e-05,2]
[347742098,1736088668717,-2917.33,9.589e-05,2]
[347742099,1736088668727,-500.0,9.589e-05,2]
[347742100,1736088668738,-1779.94,9.589e-05,2]
[347742101,1736088668748,-1408.14,9.589e-05,2]
[347742102,1736088668758,-500.0,9.589e-05,2]
[347742103,1736088668767,-889.13,9.589e-05,2]
[347742104,1736088668777,-1210.96,9.589e-05,2]
[347742105,1736088668787,-672.79,9.589e-05,2]
[347742106,1736088668797,-500.0,9.589e-05,2]
[347742107,1736088668806,-500.0,9.589e-05,2]
[347742108,1736088668816,-2270.88,9.589e-05,2]
[347742109,1736088668825,-1099.21,9.589e-05,2]
[347742110,1736088668835,-500.0,9.589e-05,2]
[347742111,1736088668844,-500.0,9.589e-05,2]
[347742112,1736088668854,-5212.5,9.589e-05,2]
[347742113,1736088668864,-3236.26,9.589e-05,2]
[347742114,1736088668874,-500.0,9.589e-05,2]
[347742115,1736088668884,-1556.79,9.589e-05,2]
[347742116,1736088668894,-500.0,9.589e-05,2]
[347742117,1736088668904,-756.09,9.589e-05,2]
[347742118,1736088668914,-1042.74,9.589e-05,2]
[347742119,1736088668924,-500.0,9.589e-05,2]
[347742120,1736088668934,-4849.9,9.589e-05,2]
[347742121,1736088668943,-500.0,9.589e-05,2]
[347742122,1736088668953,-1032.58,9.589e-05,2]
[347742123,1736088668963,-500.0,9.589e-05,2]
[347742124,1736088668973,-500.0,9.589e-05,2]
[347742125,1736088668982,-704.61,9.589e-05,2]
[347742126,1736088668992,-1168.67,9.589e-05,2]
[347742127,1736088669001,-534.28,9.589e-05,2]
[347742128,1736088669011,-2585.05,9.589e-05,2]
[347742129,1736088669020,-500.0,9.589e-05,2]
[347742130,1736088669029,-500.0,9.589e-05,2]
[347742131,1736088669037,-585.25,9.589e-05,2]
[347742132,1736088669048,-1062.79,9.589e-05,2]
[347742133,1736088669057,-1111.51,9.589e-05,2]
[347742134,1736088669066,-500.0,9.589e-05,2]
[347742135,1736088669076,-2756.73,9.589e-05,2]
[347742136,1736088669085,-868.14,9.589e-05,2]
[347742137,1736088669095,-582.66,9.589e-05,2]
[347742138,1736088669104,-665.5,9.589e-05,2]
[347742139,1736088669113,-904.94,9.589e-05,2]
[347742140,1736088669123,-625.3,9.589e-05,2]
[347742141,1736088669132,-1046.44,9.589e-05,2]
[347742142,1736088669142,-4117.25,9.589e-05,2]
[347742143,1736088669151,-500.0,9.589e-05,2]
[347742144,1736088669160,-862.48,9.589e-05,2]
[347742145,1736088669170,-790.34,9.589e-05,2]
[347742146,1736088669179,-500.0,9.589e-05,2]
[347742147,1736088669190,-2398.78,9.589e-05,2]
[347742148,1736088669199,-971.41,9.589e-05,2]
[347742149,1736088669210,-2131.31,9.589e-05,2]
[347742150,1736088669220,-2160.48,9.589e-05,2]
[347742151,1736088669230,-500.0,9.589e-05,2]
[347742152,1736088669239,-500.0,9.589e-05,2]
[347742153,1736088669249,-697.71,9.589e-05,2]
[347742154,1736088669258,-500.0,9.589e-05,2]
[347742155,1736088669268,-2020.06,9.589e-05,2]
[347742156,1736088669278,-837.45,9.589e-05,2]
[347742157,1736088669288,-1341.14,9.589e-05,2]
[347742158,1736088669298,-1143.01,9.589e-05,2]
[347742159,1736088669307,-656.43,9.589e-05,2]
[347742160,1736088669317,-500.0,9.589e-05,2]
[347742161,1736088669327,-500.0,9.589e-05,2]
[347742162,1736088669336,-1667.39,9.589e-05,2]
[347742163,1736088669345,-500.0,9.589e-05,2]
[347742164,1736088669355,-500.88,9.589e-05,2]
[347742165,1736088669364,-500.0,9.589e-05,2]
[347742166,1736088669374,-531.88,9.589e-05,2]
[347742167,1736088669384,-500.0,9.589e-05,2]
[347742168,1736088669394,-4384.56,9.589e-05,2]
[347742169,1736088669404,-1109.43,9.589e-05,2]
[347742170,1736088669415,-500.0,9.589e-05,2]
[347742171,1736088669425,-262.59056258,9.589e-05,2]
[347742172,1736088669435,-818.99,9.589e-05,2]
[347742173,1736088669445,-679.54,9.589e-05,2]
[347742174,1736088669455,-1244.62,9.589e-05,2]
[347742175,1736088669466,-714.74,9.589e-05,2]
[347742176,1736088669475,-582.89,9.589e-05,2]
[347742177,1736088669485,-1010.03,9.589e-05,2]
[347742178,1736088669494,-537.31,9.589e-05,2]
[347742179,1736088669504,-4247.44,9.589e-05,2]
[347742180,1736088669514,-500.0,9.589e-05,2]
[347742181,1736088669525,-1877.91,9.589e-05,2]
[347742182,1736088669534,-1289.27,9.589e-05,2]
[347742183,1736088669545,-771.33,9.589e-05,2]
[347742184,1736088669554,-500.0,9.589e-05,2]
[347742185,1736088669565,-633.32,9.589e-05,2]
[347742186,1736088669575,-881.19,9.589e-05,2]
[347742187,1736088669585,-1161.48,9.589e-05,2]
[347742188,1736088669595,-1415.78,9.589e-05,2]
[347742189,1736088669604,-500.0,9.589e-05,2]
[347742190,1736088669615,-3403.52,9.589e-05,2]
[347742191,1736088669624,-878.66,9.589e-05,2]
[347742192,1736088669633,-500.0,9.589e-05,2]
[347742193,1736088669643,-553.24,9.589e-05,2]
[347742194,1736088669652,-500.0,9.589e-05,2]
[347742195,1736088669663,-654.57,9.589e-05,2]
[347742196,1736088669672,-662.97,9.589e-05,2]
[347742197,1736088669682,-1073.67,9.589e-05,2]
[347742198,1736088669692,-1284.56,9.589e-05,2]
[347742199,1736088669703,-510.2,9.589e-05,2]
[347742200,1736088669712,-623.32,9.589e-05,2]
[347742201,1736088669722,-500.0,9.589e-05,2]
[347742202,1736088669731,-2312.26,9.589e-05,2]
[347742203,1736088669741,-1009.54,9.589e-05,2]
[347742204,1736088669750,-1022.52,9.589e-05,2]
[347742205,1736088669761,-500.0,9.589e-05,2]
[347742206,1736088669771,-746.31,9.589e-05,2]
[347742207,1736088669780,-2040.99,9.589e-05,2]
[347742208,1736088669789,-594.54,9.589e-05,2]
[347742209,1736088669799,-549.79,9.589e-05,2]
[347742210,1736088669810,-920.55,9.589e-05,2]
[347742211,1736088669820,-2359.74,9.589e-05,2]
[347742212,1736088669829,-733.22,9.589e-05,2]
[347742213,1736088669839,-1032.33,9.589e-05,2]
[347742214,1736088669851,-150.0,9.64e-05,2]
[347742215,1736088669861,-166.0,9.658e-05,2]
[347742216,1736088669872,-1288.0,9.7e-05,2]
[347742217,1736088669882,-150.0,9.806e-05,2]
[347742218,1736088669892,-489.1165,9.85e-05,2]
[347742219,1736088669902,-46748.19665813,9.86e-05,2]
[347742220,1736088669912,-500.0,9.862e-05,2]
[347742221,1736088669922,-677.14,9.862e-05,2]
[347742222,1736088669932,-500.0,9.862e-05,2]
[347742223,1736088669941,-1275.61,9.862e-05,2]
[347742224,1736088670132,-156.503976,9.863e-05,2]
[347742225,1736088670143,-158.748276,9.863e-05,2]
[347742226,1736088670153,-500.0,9.863e-05,2]
[347742227,1736088670162,-500.0,9.863e-05,2]
[347742228,1736088670173,-500.0,9.863e-05,2]
[347742229,1736088670183,-760.43,9.863e-05,2]
[347742230,1736088670192,-500.0,9.863e-05,2]
[347742231,1736088670202,-705.02,9.863e-05,2]
[347742232,1736088670212,-552.44,9.863e-05,2]
[347742233,1736088670222,-1434.98,9.863e-05,2]
[347742234,1736088670233,-500.0,9.863e-05,2]
[347742235,1736088670242,-500.0,9.863e-05,2]
[347742236,1736088670252,-500.0,9.863e-05,2]
[347742237,1736088670262,-500.0,9.863e-05,2]
[347742238,1736088670271,-2144.39,9.863e-05,2]
[347742239,1736088670280,-570.39,9.863e-05,2]
[347742240,1736088670290,-500.0,9.863e-05,2]
[347742241,1736088670300,-1799.96,9.863e-05,2]
[347742242,1736088670311,-500.0,9.863e-05,2]
[347742243,1736088670320,-2272.66,9.863e-05,2]
[347742244,1736088670330,-500.0,9.863e-05,2]
[347742245,1736088670339,-500.0,9.863e-05,2]
[347742246,1736088670349,-675.29,9.863e-05,2]
[347742247,1736088670360,-500.0,9.863e-05,2]
[347742248,1736088670369,-700.21,9.863e-05,2]
[347742249,1736088670381,-671.03,9.863e-05,2]
[347742250,1736088670391,-500.0,9.863e-05,2]
[347742251,1736088670401,-3594.34,9.863e-05,2]
[347742252,1736088670410,-500.0,9.863e-05,2]
[347742253,1736088670420,-328.33052118,9.863e-05,2]
[347742254,1736088670429,-684.64,9.863e-05,2]
[347742255,1736088670439,-500.0,9.863e-05,2]
[347742256,1736088670449,-655.72,9.863e-05,2]
[347742257,1736088670460,-500.0,9.863e-05,2]
[347742258,1736088670470,-500.0,9.863e-05,2]
[347742259,1736088670480,-500.0,9.863e-05,2]
[347742260,1736088670490,-1098.47,9.863e-05,2]
[347742261,1736088670500,-573.63,9.863e-05,2]
[347742262,1736088670510,-307.98215104,9.863e-05,2]
[347742263,1736088670520,-500.0,9.863e-05,2]
[347742264,1736088670529,-1388.66,9.863e-05,2]
[347742265,1736088670539,-500.0,9.863e-05,2]
[347742266,1736088670550,-500.0,9.863e-05,2]
[347742267,1736088670560,-1290.85,9.863e-05,2]
[347742268,1736088670570,-594.04,9.863e-05,2]
[347742269,1736088670580,-743.07,9.863e-05,2]
[347742270,1736088670590,-364.79,9.863e-05,2]
[347742271,1736088670599,-1013.41,9.863e-05,2]
[347742272,1736088670608,-735.81,9.863e-05,2]
[347742273,1736088670618,-500.0,9.863e-05,2]
[347742274,1736088670627,-500.0,9.863e-05,2]
[347742275,1736088670637,-500.0,9.863e-05,2]
[347742276,1736088670647,-584.3,9.863e-05,2]
[347742277,1736088670656,-2077.18,9.863e-05,2]
[347742278,1736088670666,-1447.55,9.863e-05,2]
[347742279,1736088670676,-500.0,9.863e-05,2]
[347742280,1736088670686,-6663.09,9.863e-05,2]
[347742281,1736088670695,-857.37,9.863e-05,2]
[347742282,1736088670704,-2919.98,9.863e-05,2]
[347742283,1736088670717,-500.0,9.863e-05,2]
[347742284,1736088670726,-500.0,9.863e-05,2]
[347742285,1736088670736,-514.57,9.863e-05,2]
[347742286,1736088670746,-500.0,9.863e-05,2]
[347742287,1736088670756,-361.59105362,9.863e-05,2]
[347742288,1736088670765,-518.87,9.863e-05,2]
[347742289,1736088670774,-500.0,9.863e-05,2]
[347742290,1736088670784,-625.05,9.863e-05,2]
[347742291,1736088670794,-3877.66,9.863e-05,2]
[347742292,1736088670804,-500.0,9.863e-05,2]
[347742293,1736088670813,-500.0,9.863e-05,2]
[347742294,1736088670823,-507.07,9.863e-05,2]
[347742295,1736088670832,-540.94,9.863e-05,2]
[347742296,1736088670841,-500.0,9.863e-05,2]
[347742297,1736088670851,-500.0,9.863e-05,2]
[347742298,1736088670860,-744.03,9.863e-05,2]
[347742299,1736088670870,-918.85,9.863e-05,2]
[347742300,1736088670879,-500.0,9.863e-05,2]
[347742301,1736088670889,-703.9,9.863e-05,2]
[347742302,1736088670899,-707.26,9.863e-05,2]
[347742303,1736088670908,-500.0,9.863e-05,2]
[347742304,1736088670918,-535.44,9.863e-05,2]
[347742305,1736088670927,-805.02,9.863e-05,2]
[347742306,1736088670936,-1422.38,9.863e-05,2]
[347742307,1736088670946,-500.0,9.863e-05,2]
[347742308,1736088670956,-500.0,9.863e-05,2]
[347742309,1736088670968,-879.47,9.863e-05,2]
[347742310,1736088670978,-559.6,9.863e-05,2]
[347742311,1736088670988,-500.0,9.863e-05,2]
[347742312,1736088670998,-629.53,9.863e-05,2]
[347742313,1736088671008,-500.0,9.863e-05,2]
[347742314,1736088671018,-536.5,9.863e-05,2]
[347742315,1736088671028,-943.81,9.863e-05,2]
[347742316,1736088671038,-500.0,9.863e-05,2]
[347742317,1736088671047,-854.59,9.863e-05,2]
[347742318,1736088671057,-685.17,9.863e-05,2]
[347742319,1736088671066,-500.0,9.863e-05,2]
[347742320,1736088671075,-500.0,9.863e-05,2]
[347742321,1736088671085,-500.0,9.863e-05,2]
[347742322,1736088671095,-500.0,9.863e-05,2]
[347742323,1736088671105,-500.0,9.863e-05,2]
[347742324,1736088671115,-1673.43,9.863e-05,2]
[347742325,1736088671124,-1008.09,9.863e-05,2]
[347742326,1736088671135,-500.0,9.863e-05,2]
[347742327,1736088671144,-500.0,9.863e-05,2]
[347742328,1736088671154,-1008.87,9.863e-05,2]
[347742329,1736088671163,-519.54,9.863e-05,2]
[347742330,1736088671173,-822.67,9.863e-05,2]
[347742331,1736088671182,-500.0,9.863e-05,2]
[347742332,1736088671192,-552.41,9.863e-05,2]
[347742333,1736088671202,-500.0,9.863e-05,2]
[347742334,1736088671211,-578.84,9.863e-05,2]
[347742335,1736088671221,-4801.48,9.863e-05,2]
[347742336,1736088671231,-588.95,9.863e-05,2]
[347742337,1736088671241,-656.59,9.863e-05,2]
[347742338,1736088671250,-860.4,9.863e-05,2]
[347742339,1736088671259,-810.01,9.863e-05,2]
[347742340,1736088671269,-500.0,9.863e-05,2]
[347742341,1736088671278,-798.87,9.863e-05,2]
[347742342,1736088671287,-558.05,9.863e-05,2]
[347742343,1736088671295,-1037.16,9.863e-05,2]
[347742344,1736088671305,-500.0,9.863e-05,2]
[347742345,1736088671314,-500.0,9.863e-05,2]
[347742346,1736088671323,-798.02,9.863e-05,2]
[347742347,1736088671333,-500.0,9.863e-05,2]
[347742348,1736088671342,-500.0,9.863e-05,2]
[347742349,1736088671352,-354.91571954,9.863e-05,2]
[347742350,1736088671361,-626.85,9.863e-05,2]
[347742351,1736088671371,-920.34,9.863e-05,2]
[347742352,1736088671380,-500.0,9.863e-05,2]
[347742353,1736088671391,-734.38,9.863e-05,2]
[347742354,1736088671400,-500.0,9.863e-05,2]
[347742355,1736088671410,-2241.04,9.863e-05,2]
[347742356,1736088671420,-560.28,9.863e-05,2]
[347742357,1736088671430,-500.0,9.863e-05,2]
[347742358,1736088671440,-500.0,9.863e-05,2]
[347742359,1736088671449,-500.0,9.863e-05,2]
[347742360,1736088671459,-500.0,9.863e-05,2]
[347742361,1736088671470,-428.47228028,9.863e-05,2]
[347742362,1736088671479,-814.44,9.863e-05,2]
[347742363,1736088671489,-603.48,9.863e-05,2]
[347742364,1736088671498,-686.2,9.863e-05,2]
[347742365,1736088671508,-500.0,9.863e-05,2]
[347742366,1736088671518,-504.64,9.863e-05,2]
[347742367,1736088671527,-500.0,9.863e-05,2]
[347742368,1736088671537,-598.61,9.863e-05,2]
[347742369,1736088671547,-970.15,9.863e-05,2]
[347742370,1736088671557,-500.0,9.863e-05,2]
[347742371,1736088671567,-503.0,9.863e-05,2]
[347742372,1736088671576,-598.92,9.863e-05,2]
[347742373,1736088671586,-870.34,9.863e-05,2]
[347742374,1736088671596,-561.67,9.863e-05,2]
[347742375,1736088671605,-599.13,9.863e-05,2]
[347742376,1736088671615,-577.37,9.863e-05,2]
[347742377,1736088671624,-1374.03,9.863e-05,2]
[347742378,1736088671633,-500.0,9.863e-05,2]
[347742379,1736088671643,-913.29,9.863e-05,2]
[347742380,1736088671653,-1483.17,9.863e-05,2]
[347742381,1736088671663,-607.47,9.863e-05,2]
[347742382,1736088671672,-500.0,9.863e-05,2]
[347742383,1736088671682,-500.0,9.863e-05,2]
[347742384,1736088671691,-543.44,9.863e-05,2]
[347742385,1736088671701,-1286.2,9.863e-05,2]
[347742386,1736088671711,-1384.98,9.863e-05,2]
[347742387,1736088671722,-500.0,9.863e-05,2]
[347742388,1736088671732,-500.0,9.863e-05,2]
[347742389,1736088671742,-515.88,9.863e-05,2]
[347742390,1736088671751,-963.0,9.863e-05,2]
[347742391,1736088671762,-556.77,9.863e-05,2]
[347742392,1736088671772,-965.51,9.863e-05,2]
[347742393,1736088671782,-500.0,9.863e-05,2]
[347742394,1736088671792,-632.25,9.863e-05,2]
[347742395,1736088671802,-574.84,9.863e-05,2]
[347742396,1736088671811,-1412.85,9.863e-05,2]
[347742397,1736088671821,-1091.32,9.863e-05,2]
[347742398,1736088671830,-718.45,9.863e-05,2]
[347742399,1736088671839,-1417.04,9.863e-05,2]
[347742400,1736088671849,-500.0,9.863e-05,2]
[347742401,1736088671859,-968.22,9.863e-05,2]
[347742402,1736088671868,-555.72,9.863e-05,2]
[347742403,1736088671878,-500.0,9.863e-05,2]
[347742404,1736088671887,-500.0,9.863e-05,2]
[347742405,1736088671898,-596.18,9.863e-05,2]
[347742406,1736088671907,-605.84,9.863e-05,2]
[347742407,1736088671917,-500.0,9.863e-05,2]
[347742408,1736088671927,-610.95,9.863e-05,2]
[347742409,1736088671936,-625.16,9.863e-05,2]
[347742410,1736088671947,-1014.88,9.863e-05,2]
[347742411,1736088671957,-764.25,9.863e-05,2]
[347742412,1736088671969,-1217.16,9.863e-05,2]
[347742413,1736088671978,-508.56,9.863e-05,2]
[347742414,1736088671988,-545.42,9.863e-05,2]
[347742415,1736088671998,-1097.3,9.863e-05,2]
[347742416,1736088672007,-768.49,9.863e-05,2]
[347742417,1736088672017,-500.0,9.863e-05,2]
[347742418,1736088672027,-500.0,9.863e-05,2]
[347742419,1736088672037,-563.59,9.863e-05,2]
[347742420,1736088672048,-763.9,9.863e-05,2]
[347742421,1736088672058,-500.0,9.863e-05,2]
[347742422,1736088672068,-566.7,9.863e-05,2]
[347742423,1736088672078,-500.0,9.863e-05,2]
[347742424,1736088672089,-614.33,9.863e-05,2]
[347742425,1736088672099,-500.0,9.863e-05,2]
[347742426,1736088672110,-1046.03,9.863e-05,2]
[347742427,1736088672120,-736.4,9.863e-05,2]
[347742428,1736088672132,-500.0,9.863e-05,2]
[347742429,1736088672142,-500.0,9.863e-05,2]
[347742430,1736088672152,-527.49,9.863e-05,2]
[347742431,1736088672161,-3361.51,9.863e-05,2]
[347742432,1736088672171,-938.52,9.863e-05,2]
[347742433,1736088672181,-500.0,9.863e-05,2]
[347742434,1736088672191,-500.0,9.863e-05,2]
[347742435,1736088672202,-881.7,9.863e-05,2]
[347742436,1736088672214,-500.0,9.863e-05,2]
[347742437,1736088672225,-724.35,9.863e-05,2]
[347742438,1736088672235,-500.0,9.863e-05,2]
[347742439,1736088672245,-3473.0,9.863e-05,2]
[347742440,1736088672256,-500.0,9.863e-05,2]
[347742441,1736088672266,-500.0,9.863e-05,2]
[347742442,1736088672275,-500.0,9.863e-05,2]
[347742443,1736088672285,-676.76,9.863e-05,2]
[347742444,1736088672295,-500.0,9.863e-05,2]
[347742445,1736088672306,-500.0,9.863e-05,2]
[347742446,1736088672315,-572.37,9.863e-05,2]
[347742447,1736088672325,-1832.31,9.863e-05,2]
[347742448,1736088672336,-500.0,9.863e-05,2]
[347742449,1736088672346,-500.0,9.863e-05,2]
[347742450,1736088672356,-500.0,9.863e-05,2]
[347742451,1736088672366,-500.0,9.863e-05,2]
[347742452,1736088672377,-526.4,9.863e-05,2]
[347742453,1736088672391,-500.0,9.863e-05,2]
[347742454,1736088672401,-919.97,9.863e-05,2]
[347742455,1736088672411,-802.66,9.863e-05,2]
[347742456,1736088672420,-2039.82,9.863e-05,2]
[347742457,1736088672431,-500.0,9.863e-05,2]
[347742458,1736088672441,-739.71,9.863e-05,2]
[347742459,1736088672451,-2561.32,9.863e-05,2]
[347742460,1736088672464,-558.45,9.863e-05,2]
[347742461,1736088672475,-599.92,9.863e-05,2]
[347742462,1736088672484,-2547.77,9.863e-05,2]
[347742463,1736088672493,-755.79,9.863e-05,2]
[347742464,1736088672503,-628.11,9.863e-05,2]
[347742465,1736088672513,-500.0,9.863e-05,2]
[347742466,1736088672523,-1678.51,9.863e-05,2]
[347742467,1736088672533,-500.0,9.863e-05,2]
[347742468,1736088672542,-637.32,9.863e-05,2]
[347742469,1736088672553,-500.0,9.863e-05,2]
[347742470,1736088672563,-1939.56,9.863e-05,2]
[347742471,1736088672572,-967.35,9.863e-05,2]
[347742472,1736088672582,-2938.08,9.863e-05,2]
[347742473,1736088672591,-500.0,9.863e-05,2]
[347742474,1736088672601,-1484.18,9.863e-05,2]
[347742475,1736088672611,-575.66,9.863e-05,2]
[347742476,1736088672621,-527.8,9.863e-05,2]
[347742477,1736088672631,-737.38,9.863e-05,2]
[347742478,1736088672640,-7180.0,9.863e-05,2]
[347742479,1736088672717,-500.0,9.863e-05,2]
[347742480,1736088672728,-865.87,9.863e-05,2]
[347742481,1736088672738,-4188.92,9.863e-05,2]
[347742482,1736088672747,-699.37,9.863e-05,2]
[347742483,1736088672758,-500.0,9.863e-05,2]
[347742484,1736088672767,-1392.46,9.863e-05,2]
[347742485,1736088672776,-944.8,9.863e-05,2]
[347742486,1736088672786,-500.0,9.863e-05,2]
[347742487,1736088672795,-1443.92,9.863e-05,2]
[347742488,1736088672805,-2079.08,9.863e-05,2]
[347742489,1736088672814,-795.66,9.863e-05,2]
[347742490,1736088672823,-1036.34,9.863e-05,2]
[347742491,1736088672833,-500.0,9.863e-05,2]
[347742492,1736088672842,-5368.55,9.863e-05,2]
[347742493,1736088672852,-1450.42,9.863e-05,2]
[347742494,1736088672862,-500.0,9.863e-05,2]
[347742495,1736088672871,-500.0,9.863e-05,2]
[347742496,1736088672881,-700.3,9.863e-05,2]
[347742497,1736088672890,-2917.33,9.863e-05,2]
[347742498,1736088672900,-500.0,9.863e-05,2]
[347742499,1736088672909,-1779.94,9.863e-05,2]
[347742500,1736088672919,-1408.14,9.863e-05,2]
[347742501,1736088672928,-500.0,9.863e-05,2]
[347742502,1736088672938,-889.13,9.863e-05,2]
[347742503,1736088672947,-1210.96,9.863e-05,2]
[347742504,1736088672956,-672.79,9.863e-05,2]
[347742505,1736088672967,-500.0,9.863e-05,2]
[347742506,1736088672977,-500.0,9.863e-05,2]
[347742507,1736088672986,-2270.88,9.863e-05,2]
[347742508,1736088672996,-1099.21,9.863e-05,2]
[347742509,1736088673006,-500.0,9.863e-05,2]
[347742510,1736088673015,-500.0,9.863e-05,2]
[347742511,1736088673024,-5212.5,9.863e-05,2]
[347742512,1736088673033,-3236.26,9.863e-05,2]
[347742513,1736088673043,-500.0,9.863e-05,2]
[347742514,1736088673053,-1556.79,9.863e-05,2]
[347742515,1736088673062,-500.0,9.863e-05,2]
[347742516,1736088673071,-756.09,9.863e-05,2]
[347742517,1736088673081,-1042.74,9.863e-05,2]
[347742518,1736088673090,-500.0,9.863e-05,2]
[347742519,1736088673100,-4849.9,9.863e-05,2]
[347742520,1736088673109,-500.0,9.863e-05,2]
[347742521,1736088673118,-1032.58,9.863e-05,2]
[347742522,1736088673127,-500.0,9.863e-05,2]
[347742523,1736088673137,-500.0,9.863e-05,2]
[347742524,1736088673146,-704.61,9.863e-05,2]
[347742525,1736088673156,-1168.67,9.863e-05,2]
[347742526,1736088673165,-534.28,9.863e-05,2]
[347742527,1736088673174,-2585.05,9.863e-05,2]
[347742528,1736088673184,-500.0,9.863e-05,2]
[347742529,1736088673193,-585.25,9.863e-05,2]
[347742530,1736088673203,-500.0,9.863e-05,2]
[347742531,1736088673215,-1062.79,9.863e-05,2]
[347742532,1736088673225,-1111.51,9.863e-05,2]
[347742533,1736088673235,-500.0,9.863e-05,2]
[347742534,1736088673245,-2756.73,9.863e-05,2]
[347742535,1736088673255,-582.66,9.863e-05,2]
[347742536,1736088673264,-868.14,9.863e-05,2]
[347742537,1736088673274,-665.5,9.863e-05,2]
[347742538,1736088673284,-904.94,9.863e-05,2]
[347742539,1736088673293,-625.3,9.863e-05,2]
[347742540,1736088673306,-1046.44,9.863e-05,2]
[347742541,1736088673315,-4117.25,9.863e-05,2]
[347742542,1736088673325,-500.0,9.863e-05,2]
[347742543,1736088673335,-862.48,9.863e-05,2]
[347742544,1736088673345,-790.34,9.863e-05,2]
[347742545,1736088673355,-454.0212913,9.863e-05,2]
[347742546,1736088673365,-2398.78,9.863e-05,2]
[347742547,1736088673375,-971.41,9.863e-05,2]
[347742548,1736088673384,-2160.48,9.863e-05,2]
[347742549,1736088673394,-2131.31,9.863e-05,2]
[347742550,1736088673404,-500.0,9.863e-05,2]
[347742551,1736088673414,-500.0,9.863e-05,2]
[347742552,1736088673425,-697.71,9.863e-05,2]
[347742553,1736088673435,-500.0,9.863e-05,2]
[347742554,1736088673445,-837.45,9.863e-05,2]
[347742555,1736088673454,-2020.06,9.863e-05,2]
[347742556,1736088673466,-1341.14,9.863e-05,2]